bitfinex/quotes_BTCUSD_20250730
["timestamp","ask_amount","ask_price","bid_price","bid_amount"]
[1753847100319,0.00024849,118320.0,118310.0,0.45687283]
[1753847100747,0.00024849,118320.0,118310.0,0.44842096]
[1753847100971,0.00024849,118320.0,118310.0,0.45687283]
[1753847101379,0.00024849,118320.0,118310.0,0.47432185]
[1753847109210,0.00024849,118320.0,118310.0,0.67744185]
[1753847111816,0.00024849,118320.0,118310.0,0.78837804]
[1753847111988,0.00024849,118320.0,118310.0,0.79682998]
[1753847112206,0.00024849,118320.0,118310.0,0.80528185]
[1753847113941,0.00024849,118320.0,118310.0,0.59370998]
[1753847114144,0.00024849,118320.0,118310.0,0.57680603]
[1753847114550,0.00024849,118320.0,118310.0,0.56835395]
[1753847114780,0.00024849,118320.0,118310.0,0.57680603]
[1753847114988,0.00024849,118320.0,118310.0,0.58525804]
[1753847115479,0.00024849,118320.0,118310.0,0.59370998]
[1753847115888,0.00024849,118320.0,118310.0,0.58525804]
[1753847116146,0.00024849,118320.0,118310.0,0.57680603]
[1753847116363,0.00024849,118320.0,118310.0,0.58525804]
[1753847116553,0.00024849,118320.0,118310.0,0.57680603]
[1753847117743,0.00024849,118320.0,118310.0,0.5768061]
[1753847117940,0.00024849,118320.0,118310.0,0.58525818]
[1753847118151,0.00024849,118320.0,118310.0,0.5768061]
[1753847118352,0.00024849,118320.0,118310.0,0.58525818]
[1753847119645,0.00024849,118320.0,118310.0,0.5768061]
[1753847120058,0.00024849,118320.0,118310.0,0.58525818]
[1753847121448,0.00024849,118320.0,118310.0,0.5768061]
[1753847121617,0.00024849,118320.0,118310.0,0.58525818]
[1753847121822,0.00024849,118320.0,118310.0,0.59371012]
[1753847122034,0.00024849,118320.0,118310.0,0.59371019]
[1753847123537,0.00024849,118320.0,118310.0,0.58525818]
[1753847123778,0.00024849,118320.0,118310.0,0.5768061]
[1753847124392,0.00024849,118320.0,118310.0,0.59371019]
[1753847124622,0.00024849,118320.0,118310.0,0.58525818]
[1753847124849,0.00024849,118320.0,118310.0,0.59371019]
[1753847125555,0.00024849,118320.0,118310.0,0.58525818]
[1753847126679,0.00024849,118320.0,118310.0,0.56835395]
[1753847126906,0.00024849,118320.0,118310.0,0.5768061]
[1753847127771,0.00024849,118320.0,118310.0,0.55794173]
[1753847127980,0.00024849,118320.0,118310.0,0.55803173]
[1753847129020,0.00024849,118320.0,118310.0,0.56001173]
[1753847129473,0.00024849,118320.0,118310.0,0.5684641]
[1753847129808,0.00024849,118320.0,118310.0,0.56001173]
[1753847141441,0.00024849,118320.0,118310.0,0.52533173]
[1753847141877,0.00024849,118320.0,118310.0,0.55653173]
[1753847142101,0.00024849,118320.0,118310.0,0.55851173]
[1753847143270,0.00024849,118320.0,118310.0,0.55653173]
[1753847143502,0.00024849,118320.0,118310.0,0.49523173]
[1753847143706,0.00024849,118320.0,118310.0,0.56053173]
[1753847144018,0.00024849,118320.0,118310.0,0.41524271]
[1753847144236,0.00024849,118320.0,118310.0,0.38632471]
[1753847144453,0.00024849,118320.0,118310.0,0.44903471]
[1753847145149,0.00024849,118320.0,118310.0,0.45227471]
[1753847145849,0.00024849,118320.0,118310.0,0.47767371]
[1753847146280,0.05869964,118320.0,118310.0,0.41172371]
[1753847146713,0.05869964,118320.0,118310.0,0.47443371]
[1753847147558,0.05024849,118320.0,118310.0,0.47443371]
[1753847147791,0.05024849,118320.0,118310.0,0.47767371]
[1753847147976,0.0586995,118320.0,118310.0,0.47767371]
[1753847148522,0.05869964,118320.0,118310.0,0.47767371]
[1753847148953,0.05869957,118320.0,118310.0,0.47767371]
[1753847149176,0.05024849,118320.0,118310.0,0.47767371]
[1753847151252,0.05869957,118320.0,118310.0,0.47767371]
[1753847151502,0.05024849,118320.0,118310.0,0.47767371]
[1753847151685,0.05869957,118320.0,118310.0,0.47767371]
[1753847151825,0.05869957,118320.0,118310.0,0.3086263]
[1753847152052,0.06715079,118320.0,118310.0,0.47443371]
[1753847152482,0.06715079,118320.0,118310.0,0.44903471]
[1753847152693,0.06715072,118320.0,118310.0,0.44903471]
[1753847153339,0.07560201,118320.0,118310.0,0.2172773]
[1753847153792,0.07560201,118320.0,118310.0,0.2776873]
[1753847154026,0.08405352,118320.0,118310.0,0.2809273]
[1753847154195,0.25308715,118320.0,118310.0,0.2776873]
[1753847154399,0.09250567,118320.0,118310.0,0.2776873]
[1753847154877,0.08405402,118320.0,118310.0,0.2776873]
[1753847155309,0.09250567,118320.0,118310.0,0.2776873]
[1753847155783,0.08405402,118320.0,118310.0,0.2776873]
[1753847156216,0.08405402,118320.0,118310.0,0.2809273]
[1753847159476,0.25308765,118320.0,118310.0,0.2172773]
[1753847159890,0.08405452,118320.0,118310.0,0.2776873]
[1753847160323,0.08405452,118320.0,118310.0,0.2809273]
[1753847161043,0.07560287,118320.0,118310.0,0.2809273]
[1753847161270,0.06715129,118320.0,118310.0,0.2809273]
[1753847161510,0.0756023,118320.0,118310.0,0.2829673]
[1753847162933,0.08405381,118320.0,118310.0,0.2829673]
[1753847164110,0.09250546,118320.0,118310.0,0.2829673]
[1753847164340,0.08405381,118320.0,118310.0,0.2829673]
[1753847164952,0.09250539,118320.0,118310.0,0.2829673]
[1753847166329,0.08405381,118320.0,118310.0,0.2829673]
[1753847166534,0.08405381,118320.0,118310.0,0.3493673]
[1753847166745,0.08405381,118320.0,118310.0,0.3161673]
[1753847167163,0.09250546,118320.0,118310.0,0.3161673]
[1753847167511,0.24463622,118320.0,118310.0,0.3161673]
[1753847167735,0.24463622,118320.0,118310.0,0.2809273]
[1753847170019,0.24463622,118320.0,118310.0,0.2829673]
[1753847171668,0.24463622,118320.0,118310.0,0.2809273]
[1753847171881,0.23618478,118320.0,118310.0,0.2809273]
[1753847173579,0.56773327,118320.0,118310.0,0.2809273]
[1753847173774,0.56773327,118320.0,118310.0,0.2776873]
[1753847174469,0.56773327,118320.0,118310.0,0.2809273]
[1753847175602,0.56773327,118320.0,118310.0,0.3459673]
[1753847182785,0.56773327,118320.0,118310.0,0.3439273]
[1753847183000,0.56773327,118320.0,118310.0,0.3133273]
[1753847183433,0.56773327,118320.0,118310.0,0.2809273]
[1753847183708,0.56773327,118320.0,118310.0,0.2172773]
[1753847184117,0.56773327,118320.0,118310.0,0.2788473]
[1753847185052,0.56773327,118320.0,118310.0,0.3441473]
[1753847185273,0.56773327,118320.0,118310.0,0.3471373]
[1753847186478,0.56773327,118320.0,118310.0,0.3491473]
[1753847196927,0.56773327,118320.0,118310.0,0.3471373]
[1753847198718,0.56773327,118320.0,118310.0,0.3491473]
[1753847213298,0.56773327,118320.0,118310.0,0.3471373]
[1753847213928,0.57641843,118320.0,118310.0,0.3471373]
[1753847214932,0.57641843,118320.0,118310.0,0.1328]
[1753847215712,0.57641843,118320.0,118310.0,0.1308]
[1753847215907,0.57641843,118320.0,118310.0,0.1278]
[1753847216322,0.57741843,118320.0,118310.0,0.1298]
[1753847220075,0.57741843,118320.0,118310.0,0.002]
[1753847220292,0.65469393,118320.0,118310.0,0.12976]
[1753847220536,0.65469393,118320.0,118310.0,0.002]
[1753847220783,0.57741843,118320.0,118310.0,0.12976]
[1753847221258,0.62741843,118320.0,118310.0,0.002]
[1753847221504,0.92884928,118320.0,118310.0,0.12976]
[1753847221949,0.94712144,118320.0,118310.0,0.12976]
[1753847222439,0.90293205,118320.0,118310.0,0.12776]
[1753847222653,0.92734205,118320.0,118310.0,0.12776]
[1753847223071,0.93034205,118320.0,118310.0,0.12776]
[1753847224726,0.84123205,118320.0,118310.0,0.12776]
[1753847225246,0.86723992,118320.0,118310.0,0.12776]
[1753847233042,0.89315715,118320.0,118310.0,0.12776]
[1753847233240,0.18596736,118300.0,118290.0,0.0625]
[1753847233536,0.29592787,118300.0,118290.0,0.24794]
[1753847233740,0.23596736,118300.0,118290.0,0.25302]
[1753847234505,0.23596736,118300.0,118290.0,0.25502]
[1753847235107,0.23596736,118300.0,118290.0,0.25493752]
[1753847235654,0.28596736,118300.0,118290.0,0.25493752]
[1753847236403,0.36801116,118300.0,118290.0,0.25493752]
[1753847237980,0.36801116,118300.0,118290.0,0.25281752]
[1753847238227,0.36801116,118300.0,118290.0,0.21915752]
[1753847238443,0.79712116,118300.0,118290.0,0.05964]
[1753847238705,0.79712116,118300.0,118290.0,0.1298]
[1753847239811,0.70801116,118300.0,118290.0,0.1298]
[1753847240814,4.90215646,118300.0,118290.0,0.1298]
[1753847242101,4.92757146,118300.0,118290.0,0.1298]
[1753847242730,4.95348869,118300.0,118290.0,0.1298]
[1753847243799,4.95348869,118300.0,118290.0,0.1278]
[1753847244005,0.81790346,118300.0,118290.0,0.25515]
[1753847244214,0.81790346,118300.0,118290.0,0.25615]
[1753847245424,0.81890346,118300.0,118290.0,0.25615]
[1753847249838,0.90801346,118300.0,118290.0,0.25615]
[1753847251573,0.92626922,118300.0,118290.0,0.25615]
[1753847265381,0.90085422,118300.0,118290.0,0.25615]
[1753847269380,0.90085422,118300.0,118290.0,0.12835]
[1753847269584,0.92514803,118300.0,118290.0,0.25101]
[1753847269803,0.92514803,118300.0,118250.0,0.06792613]
[1753847269804,4.27878192,118280.0,118260.0,0.08684]
[1753847270005,4.87932148,118270.0,118260.0,0.031]
[1753847270236,0.61757469,118260.0,118250.0,0.21464]
[1753847270443,0.66480273,118260.0,118250.0,0.21464]
[1753847271081,0.66480273,118260.0,118250.0,0.21468838]
[1753847271283,0.74928003,118260.0,118250.0,0.08688838]
[1753847271871,0.75028003,118260.0,118250.0,0.08688838]
[1753847272324,0.94131635,118260.0,118250.0,4.838e-05]
[1753847272554,0.94131635,118260.0,118250.0,0.00104838]
[1753847272801,0.91838212,118260.0,118250.0,0.00104838]
[1753847273759,0.89408831,118260.0,118250.0,0.08988838]
[1753847273885,0.89408831,118260.0,118250.0,0.09311838]
[1753847274324,1.02192831,118260.0,118250.0,0.09311838]
[1753847276022,1.04702723,118260.0,118250.0,0.09311838]
[1753847276432,1.04702723,118260.0,118250.0,0.12471838]
[1753847280480,0.64367361,118260.0,118250.0,0.12666838]
[1753847280701,0.27857469,118260.0,118250.0,0.12666838]
[1753847281138,0.61857469,118260.0,118250.0,0.12666838]
[1753847281582,0.56857469,118260.0,118250.0,0.12666838]
[1753847281803,0.22857469,118260.0,118250.0,0.12666838]
[1753847282017,0.56857469,118260.0,118250.0,0.12666838]
[1753847291136,0.57703042,118260.0,118250.0,0.12666838]
[1753847291347,0.51857469,118260.0,118250.0,0.12666838]
[1753847291547,0.56857469,118260.0,118250.0,0.12666838]
[1753847299165,0.56857469,118260.0,118250.0,0.21114568]
[1753847299166,0.36636675,118260.0,118250.0,0.21114568]
[1753847299382,0.40791088,118260.0,118250.0,0.21114568]
[1753847299580,0.41636661,118260.0,118250.0,0.21114568]
[1753847299802,0.41636653,118260.0,118250.0,0.21014568]
[1753847300013,0.40791088,118260.0,118250.0,0.21014568]
[1753847300220,0.05945537,118260.0,118250.0,0.38027887]
[1753847300434,0.06791095,118260.0,118250.0,0.38027887]
[1753847300686,0.0584553,118260.0,118250.0,0.38027887]
[1753847301048,0.07536625,118260.0,118250.0,0.38027887]
[1753847301699,0.07536625,118260.0,118250.0,0.38227887]
[1753847301939,0.06691067,118260.0,118250.0,0.38227887]
[1753847302147,0.07536611,118260.0,118250.0,0.38127887]
[1753847302367,0.08382176,118260.0,118250.0,0.38327887]
[1753847303217,0.08382169,118260.0,118250.0,0.38327887]
[1753847303647,0.06691067,118260.0,118250.0,0.38327887]
[1753847304036,0.07536625,118260.0,118250.0,0.38327887]
[1753847304250,0.07536618,118260.0,118250.0,0.38327887]
[1753847304899,0.08382176,118260.0,118250.0,0.21414568]
[1753847305215,0.0922782,118260.0,118250.0,0.34226568]
[1753847305523,0.08382226,118260.0,118250.0,0.34226568]
[1753847305707,0.09227813,118260.0,118250.0,0.34226568]
[1753847307299,0.08382226,118260.0,118250.0,0.34226568]
[1753847307511,0.08382219,118260.0,118250.0,0.34226568]
[1753847307972,0.09227799,118260.0,118250.0,0.34226568]
[1753847308190,0.08382219,118260.0,118250.0,0.34226568]
[1753847308532,0.09227806,118260.0,118250.0,0.34226568]
[1753847309041,0.09227799,118260.0,118250.0,0.34226568]
[1753847312556,0.09227856,118260.0,118250.0,0.34226568]
[1753847313409,0.08382262,118260.0,118250.0,0.34226568]
[1753847313557,0.06691109,118260.0,118250.0,0.34226568]
[1753847314019,0.07536682,118260.0,118250.0,0.34226568]
[1753847319580,0.06691109,118260.0,118250.0,0.34226568]
[1753847319765,0.07536674,118260.0,118250.0,0.34226568]
[1753847320294,0.05845487,118270.0,118260.0,0.0638]
[1753847320535,0.35690952,118270.0,118260.0,0.2093873]
[1753847320743,0.40690952,118270.0,118260.0,0.2093873]
[1753847321162,0.35690952,118270.0,118260.0,0.2093873]
[1753847321366,0.40690952,118270.0,118260.0,0.2093873]
[1753847321577,0.36536453,118270.0,118260.0,0.2103873]
[1753847321786,0.39,118270.0,118260.0,0.37950619]
[1753847321987,0.39845458,118270.0,118260.0,0.37950619]
[1753847322196,0.4069093,118270.0,118260.0,0.37950619]
[1753847322557,0.4069093,118270.0,118260.0,0.37850619]
[1753847323607,0.41536417,118270.0,118260.0,0.38050619]
[1753847323816,0.41536417,118270.0,118260.0,0.2113873]
[1753847324018,0.4322744,118270.0,118260.0,0.2133873]
[1753847325926,0.43227433,118270.0,118260.0,0.2133873]
[1753847326134,0.42381918,118270.0,118260.0,0.2133873]
[1753847326356,0.43227433,118270.0,118260.0,0.2133873]
[1753847326574,0.42381975,118270.0,118260.0,0.2133873]
[1753847327701,0.41536503,118270.0,118260.0,0.2133873]
[1753847328080,0.58446962,118270.0,118260.0,0.2133873]
[1753847329062,0.57601475,118270.0,118260.0,0.2133873]
[1753847329277,0.55910459,118270.0,118260.0,0.2082073]
[1753847330317,0.55910459,118270.0,118260.0,0.2111573]
[1753847332498,0.55910459,118270.0,118260.0,0.3391973]
[1753847337068,0.55910459,118270.0,118260.0,0.3411673]
[1753847337851,0.39,118270.0,118260.0,0.51028619]
[1753847338086,0.40690959,118270.0,118260.0,0.51028619]
[1753847338907,0.40690866,118280.0,118270.0,0.0632]
[1753847339106,0.57599895,118280.0,118270.0,0.2087473]
[1753847342792,0.57599895,118280.0,118270.0,0.2097473]
[1753847343426,0.57599895,118280.0,118270.0,0.2183516]
[1753847345215,0.57599895,118280.0,118270.0,0.2097473]
[1753847346151,0.56754473,118280.0,118270.0,0.2097473]
[1753847348147,0.56754473,118280.0,118270.0,0.21812589]
[1753847350061,0.4153626,118280.0,118270.0,0.21812589]
[1753847350832,0.05,118280.0,118270.0,0.38723048]
[1753847351075,0.06690802,118280.0,118270.0,0.38723048]
[1753847351298,0.07536189,118280.0,118270.0,0.38723048]
[1753847351745,0.07536189,118280.0,118270.0,0.38623048]
[1753847351963,0.06690781,118280.0,118270.0,0.38823048]
[1753847352187,0.07536182,118280.0,118270.0,0.38823048]
[1753847352645,0.08381597,118280.0,118270.0,0.38823048]
[1753847352871,0.09227034,118280.0,118270.0,0.21912589]
[1753847353080,0.09227027,118280.0,118270.0,0.21912589]
[1753847353716,0.05845365,118290.0,118270.0,0.39668563]
[1753847353937,0.40690695,118290.0,118280.0,0.3366373]
[1753847354143,0.4153606,118290.0,118280.0,0.3386073]
[1753847355421,0.42381439,118290.0,118280.0,0.3386073]
[1753847355815,0.4153606,118290.0,118280.0,0.3396073]
[1753847356008,0.42381439,118290.0,118280.0,0.3396073]
[1753847356586,0.4153606,118290.0,118280.0,0.3396073]
[1753847356784,0.42381432,118290.0,118280.0,0.3396073]
[1753847357598,0.41536088,118290.0,118280.0,0.3396073]
[1753847359114,0.58443687,118290.0,118280.0,0.3396073]
[1753847359324,0.57598336,118290.0,118280.0,0.3396073]
[1753847366710,0.40690709,118290.0,118280.0,0.3396073]
[1753847367797,0.41536088,118290.0,118280.0,0.3396073]
[1753847368326,0.39845329,118290.0,118280.0,0.50869759]
[1753847368562,0.4069068,118290.0,118280.0,0.3396073]
[1753847370066,0.41536045,118290.0,118280.0,0.3396073]
[1753847370264,0.41536045,118290.0,118280.0,0.3386073]
[1753847370460,0.41536045,118290.0,118280.0,0.3406073]
[1753847370665,0.41536045,118290.0,118280.0,0.3426073]
[1753847371510,0.39845329,118290.0,118280.0,0.3426073]
[1753847371725,0.39845329,118290.0,118280.0,0.51169759]
[1753847372127,0.40690673,118290.0,118280.0,0.51169759]
[1753847372515,0.39845329,118290.0,118280.0,0.51169759]
[1753847372721,0.00845265,118300.0,118290.0,0.0622]
[1753847372969,0.41535831,118300.0,118290.0,0.1487873]
[1753847373284,0.41535831,118300.0,118290.0,0.2071673]
[1753847373285,0.43226383,118300.0,118290.0,0.2071673]
[1753847373658,0.42381132,118300.0,118290.0,0.2071673]
[1753847373895,0.42381132,118300.0,118290.0,0.2081673]
[1753847374495,0.41535867,118300.0,118290.0,0.2081673]
[1753847375098,0.56751471,118300.0,118290.0,0.2081673]
[1753847375853,0.5590617,118300.0,118290.0,0.2081673]
[1753847376061,0.5590617,118300.0,118290.0,0.2060573]
[1753847376272,0.5590617,118300.0,118290.0,0.2030173]
[1753847376948,0.55897944,118300.0,118290.0,0.2030173]
[1753847379377,0.55897944,118300.0,118290.0,0.2060573]
[1753847385062,0.55897944,118300.0,118290.0,0.2030173]
[1753847385266,0.55897944,118300.0,118290.0,0.0329]
[1753847385916,0.55897944,118300.0,118290.0,0.001]
[1753847386134,0.58957944,118300.0,118290.0,0.12884]
[1753847386753,0.58957944,118300.0,118290.0,0.12784]
[1753847387612,0.55897944,118300.0,118290.0,0.12784]
[1753847388029,0.55997944,118300.0,118290.0,0.12784]
[1753847388877,0.55997944,118300.0,118290.0,0.21412]
[1753847394551,0.55997944,118300.0,118290.0,0.12784]
[1753847394755,0.69039715,118300.0,118290.0,0.12784]
[1753847398031,0.57599881,118280.0,118270.0,0.12202]
[1753847398295,0.57599881,118280.0,118270.0,0.21828]
[1753847399398,0.57599881,118280.0,118270.0,0.22028]
[1753847399632,0.57599881,118280.0,118270.0,0.22228]
[1753847401209,0.57599881,118280.0,118270.0,0.22434]
[1753847401420,0.57599881,118280.0,118270.0,0.25434]
[1753847405304,0.40690852,118280.0,118270.0,0.3388173]
[1753847405530,0.41536246,118280.0,118270.0,0.3388173]
[1753847405745,0.58445275,118280.0,118270.0,0.3388173]
[1753847406133,0.57599881,118280.0,118270.0,0.3388173]
[1753847410492,0.56754466,118280.0,118270.0,0.3388173]
[1753847416685,0.40690795,118280.0,118270.0,0.3388173]
[1753847416835,0.41536203,118280.0,118270.0,0.3388173]
[1753847417033,0.42381625,118280.0,118270.0,0.3388173]
[1753847417217,0.36536203,118280.0,118270.0,0.3388173]
[1753847417419,0.42381618,118280.0,118270.0,0.3388173]
[1753847417624,0.42381618,118280.0,118270.0,0.50792189]
[1753847417625,0.05,118280.0,118270.0,0.50792189]
[1753847417831,0.05,118280.0,118270.0,0.44602189]
[1753847418256,0.05845387,118280.0,118270.0,0.44602189]
[1753847418467,0.05845387,118280.0,118270.0,0.50952189]
[1753847419126,0.06690781,118280.0,118270.0,0.50952189]
[1753847419472,0.05845387,118280.0,118270.0,0.50952189]
[1753847419730,0.06690795,118280.0,118270.0,0.50952189]
[1753847419943,0.06690788,118280.0,118270.0,0.50952189]
[1753847421738,0.07536203,118280.0,118270.0,0.50952189]
[1753847422969,0.0838164,118280.0,118270.0,0.3404173]
[1753847423171,0.08381633,118280.0,118270.0,0.3404173]
[1753847423427,0.09227077,118280.0,118270.0,0.3404173]
[1753847423632,0.08381633,118280.0,118270.0,0.3404173]
[1753847423824,0.0922707,118280.0,118270.0,0.3404173]
[1753847423991,0.08381633,118280.0,118270.0,0.3404173]
[1753847424903,0.09227077,118280.0,118270.0,0.3404173]
[1753847425109,0.08381633,118280.0,118270.0,0.3404173]
[1753847425283,0.09227077,118280.0,118270.0,0.3404173]
[1753847425694,0.08371633,118280.0,118270.0,0.3404173]
[1753847426778,0.09217084,118280.0,118270.0,0.3404173]
[1753847427047,0.09217077,118280.0,118270.0,0.3404173]
[1753847428109,0.08371633,118280.0,118270.0,0.3404173]
[1753847428329,0.00845315,118290.0,118280.0,0.16909029]
[1753847428549,0.06680644,118290.0,118280.0,0.31918759]
[1753847428763,0.07525995,118290.0,118280.0,0.2023873]
[1753847428960,0.06680644,118290.0,118280.0,0.37147759]
[1753847429430,0.07525995,118290.0,118280.0,0.2023873]
[1753847429820,0.07525988,118290.0,118280.0,0.2023873]
[1753847430383,0.00845315,118290.0,118280.0,0.37147759]
[1753847430589,0.05835315,118290.0,118280.0,0.37147759]
[1753847431255,0.07525996,118290.0,118280.0,0.37247759]
[1753847433562,0.07525996,118290.0,118280.0,0.2033873]
[1753847433808,0.05835315,118290.0,118280.0,0.37247759]
[1753847434068,0.37381132,118300.0,118280.0,0.37137759]
[1753847434336,0.0499,118290.0,118280.0,0.32178759]
[1753847434595,0.05835315,118290.0,118280.0,0.38462759]
[1753847434784,0.0499,118290.0,118280.0,0.43691759]
[1753847434972,0.05835315,118290.0,118280.0,0.50111759]
[1753847435182,0.0499,118290.0,118280.0,0.50111759]
[1753847435355,0.05835315,118290.0,118280.0,0.49811759]
[1753847435550,0.0499,118290.0,118280.0,0.49811759]
[1753847436618,0.0499,118290.0,118280.0,0.5085721]
[1753847437023,0.0499,118290.0,118280.0,0.50011759]
[1753847437720,0.0499,118290.0,118280.0,0.5095721]
[1753847438371,0.0499,118290.0,118280.0,0.5085721]
[1753847438574,0.0499,118290.0,118280.0,0.5105721]
[1753847440153,0.0499,118290.0,118280.0,0.50211759]
[1753847440594,0.0499,118290.0,118280.0,0.5105721]
[1753847441687,0.0499,118290.0,118280.0,0.50211759]
[1753847442391,0.05835315,118290.0,118280.0,0.50211759]
[1753847442860,0.0499,118290.0,118280.0,0.50211759]
[1753847444190,0.0499,118290.0,118280.0,0.5105721]
[1753847444397,0.0499,118290.0,118280.0,0.51902654]
[1753847444608,0.0499,118290.0,118280.0,0.5105721]
[1753847444781,0.05835315,118290.0,118280.0,0.50211759]
[1753847445551,0.0499,118290.0,118280.0,0.5105721]
[1753847446673,0.0499,118290.0,118280.0,0.51902654]
[1753847447114,0.61387991,118320.0,118290.0,0.23982978]
[1753847447348,0.07537856,118310.0,118300.0,0.2124373]
[1753847447564,0.08383036,118310.0,118300.0,0.2667473]
[1753847447755,0.08383036,118310.0,118300.0,0.33820371]
[1753847448111,0.05847469,118310.0,118300.0,0.50726541]
[1753847448629,0.06692656,118310.0,118300.0,0.50726541]
[1753847449244,0.06692656,118310.0,118300.0,0.33820371]
[1753847449478,0.07537857,118310.0,118300.0,0.33820371]
[1753847449614,0.07537864,118310.0,118300.0,0.33820371]
[1753847450029,0.08383093,118310.0,118300.0,0.33820371]
[1753847450469,0.07637864,118310.0,118300.0,0.33820371]
[1753847450669,0.08383086,118310.0,118300.0,0.33820371]
[1753847450876,0.08383086,118310.0,118300.0,0.33920371]
[1753847452494,0.07537857,118310.0,118300.0,0.33920371]
[1753847452743,0.08383072,118310.0,118300.0,0.33920371]
[1753847452937,0.09228301,118310.0,118300.0,0.33920371]
[1753847453888,0.08383129,118310.0,118300.0,0.33920371]
[1753847454102,0.08383179,118310.0,118300.0,0.3306473]
[1753847455745,0.2528792,118310.0,118300.0,0.3391725]
[1753847456738,0.24442719,118310.0,118300.0,0.3391725]
[1753847459250,0.07537978,118310.0,118300.0,0.3391725]
[1753847459468,0.06692741,118310.0,118300.0,0.3391725]
[1753847461161,0.06692741,118310.0,118300.0,0.3306473]
[1753847461416,0.23597482,118310.0,118300.0,0.3306473]
[1753847462491,0.22752267,118310.0,118300.0,0.3306473]
[1753847462953,0.22752267,118310.0,118300.0,0.3286273]
[1753847464370,0.22752267,118310.0,118300.0,0.3306473]
[1753847469278,0.23597475,118310.0,118300.0,0.3306473]
[1753847469850,0.06692734,118310.0,118300.0,0.3306473]
[1753847470986,0.07537914,118310.0,118300.0,0.3306473]
[1753847471398,0.06692692,118310.0,118300.0,0.3306473]
[1753847471981,0.07537914,118310.0,118300.0,0.3306473]
[1753847472216,0.08383143,118310.0,118300.0,0.3306473]
[1753847472785,0.07537914,118310.0,118300.0,0.3306473]
[1753847473400,0.05847484,118310.0,118300.0,0.3306473]
[1753847473633,0.06692685,118310.0,118300.0,0.3306473]
[1753847474015,0.07537907,118310.0,118300.0,0.3306473]
[1753847474367,0.05847491,118310.0,118300.0,0.499709]
[1753847474541,0.06692663,118310.0,118300.0,0.499709]
[1753847475193,0.07537871,118310.0,118300.0,0.499709]
[1753847475506,0.07537864,118310.0,118300.0,0.499709]
[1753847475781,0.08383079,118310.0,118300.0,0.3306473]
[1753847476759,0.07537864,118310.0,118300.0,0.3306473]
[1753847477488,0.05002297,118310.0,118300.0,0.499709]
[1753847477688,0.00857469,118310.0,118300.0,0.499709]
[1753847477973,0.05002297,118310.0,118300.0,0.50816208]
[1753847478201,0.05002297,118310.0,118300.0,0.51661509]
[1753847478424,0.05002297,118310.0,118300.0,0.50816208]
[1753847478659,0.05847476,118310.0,118300.0,0.498709]
[1753847478991,0.05847476,118310.0,118300.0,0.502709]
[1753847479617,0.05847469,118310.0,118300.0,0.502709]
[1753847480377,0.06692648,118310.0,118300.0,0.502709]
[1753847483784,0.05847469,118310.0,118300.0,0.502709]
[1753847484011,0.06692648,118310.0,118300.0,0.502709]
[1753847484251,0.08383071,118310.0,118300.0,0.3336473]
[1753847484475,0.08383071,118310.0,118300.0,0.2056873]
[1753847484476,0.24442698,118310.0,118300.0,0.2056873]
[1753847484688,0.23597497,118310.0,118300.0,0.3335673]
[1753847485100,0.23597497,118310.0,118300.0,0.3315473]
[1753847485958,0.23597497,118310.0,118300.0,0.3335073]
[1753847486386,0.06692756,118310.0,118300.0,0.3335073]
[1753847487008,0.23597497,118310.0,118300.0,0.3335073]
[1753847487434,0.07537949,118310.0,118300.0,0.3335073]
[1753847489866,0.08383186,118310.0,118300.0,0.3335073]
[1753847491959,0.07537892,118310.0,118300.0,0.3335073]
[1753847494187,0.07537885,118310.0,118300.0,0.3335073]
[1753847494404,0.07537878,118310.0,118300.0,0.3335073]
[1753847495215,0.07537878,118310.0,118300.0,0.502569]
[1753847495216,0.0669267,118310.0,118300.0,0.502569]
[1753847496034,0.07537878,118310.0,118300.0,0.502569]
[1753847497043,0.07537878,118310.0,118300.0,0.3335073]
[1753847498754,0.07537878,118310.0,118300.0,0.3335073]
[1753847500062,0.0669267,118310.0,118300.0,0.3335073]
[1753847500282,0.07537878,118310.0,118300.0,0.3335073]
[1753847502416,0.0669267,118310.0,118300.0,0.3335073]
[1753847502639,0.0669267,118310.0,118300.0,0.502569]
[1753847502843,0.07537878,118310.0,118300.0,0.502569]
[1753847503023,0.07537878,118310.0,118300.0,0.3335073]
[1753847505293,0.0669267,118310.0,118300.0,0.502569]
[1753847505482,0.07537871,118310.0,118300.0,0.502569]
[1753847507547,0.07537871,118310.0,118300.0,0.3335073]
[1753847509030,0.06692663,118310.0,118300.0,0.502569]
[1753847511139,0.07537871,118310.0,118300.0,0.502569]
[1753847511552,0.07537871,118310.0,118300.0,0.3335073]
[1753847511756,0.06692663,118310.0,118300.0,0.3335073]
[1753847511959,0.07537864,118310.0,118300.0,0.3335073]
[1753847512437,0.09228316,118310.0,118300.0,0.3335073]
[1753847512656,0.09228308,118310.0,118300.0,0.3335073]
[1753847512851,0.08383079,118310.0,118300.0,0.3335073]
[1753847513212,0.09228308,118310.0,118300.0,0.3335073]
[1753847513423,0.08383079,118310.0,118300.0,0.3335073]
[1753847514058,0.05847476,118310.0,118300.0,0.502569]
[1753847514288,0.0669267,118310.0,118300.0,0.502569]
[1753847514491,0.05002297,118310.0,118300.0,0.51947495]
[1753847514735,0.05002297,118310.0,118300.0,0.53638046]
[1753847514908,0.05002297,118310.0,118300.0,0.52792774]
[1753847515092,0.05002297,118310.0,118300.0,0.54483304]
[1753847515292,0.05002297,118310.0,118300.0,0.54483311]
[1753847515495,0.05002297,118310.0,118300.0,0.54483261]
[1753847515701,0.05002297,118310.0,118300.0,0.53638003]
[1753847516309,0.00012297,118310.0,118300.0,0.54483261]
[1753847516507,0.00012297,118310.0,118300.0,0.56228163]
[1753847519997,0.00012297,118310.0,118300.0,0.55382905]
[1753847520213,0.00012297,118310.0,118300.0,0.51947466]
[1753847520396,0.00012297,118310.0,118300.0,0.53638003]
[1753847520650,0.00012297,118310.0,118300.0,0.52792738]
[1753847520864,0.00012297,118310.0,118300.0,0.53638003]
[1753847521447,0.00012297,118310.0,118300.0,0.54483261]
[1753847523876,0.00012297,118310.0,118300.0,0.54083261]
[1753847524111,0.00012297,118310.0,118300.0,0.54383261]
[1753847524510,0.00012297,118310.0,118300.0,0.56923161]
[1753847525649,0.00012297,118310.0,118300.0,0.57123161]
[1753847531905,0.00012297,118310.0,118300.0,0.56277903]
[1753847532572,0.00012297,118310.0,118300.0,0.57123161]
[1753847533766,0.00012297,118310.0,118300.0,0.56277903]
[1753847534311,0.00012297,118310.0,118300.0,0.54587395]
[1753847534536,0.00012297,118310.0,118300.0,0.55432667]
[1753847534744,0.00012297,118310.0,118300.0,0.56277946]
[1753847534969,0.00012297,118310.0,118300.0,0.55432674]
[1753847535194,0.00012297,118310.0,118300.0,0.57123211]
[1753847535407,0.00012297,118310.0,118300.0,0.56277939]
[1753847535641,0.00012297,118310.0,118300.0,0.55432674]
[1753847535831,0.00012297,118310.0,118300.0,0.57123211]
[1753847536042,0.00012297,118310.0,118300.0,0.55432674]
[1753847536469,0.00012297,118310.0,118300.0,0.56277939]
[1753847536693,0.00012297,118310.0,118300.0,0.56277946]